bitfinex/quotes_SOLUSD_20260306
["timestamp","ask_amount","ask_price","bid_price","bid_amount"]
[1772840113504,0.49946512,84.905,84.88,0.2]
[1772840113714,0.49946512,84.899,84.87,0.2]
[1772840113913,0.49946512,84.898,84.87,0.2]
[1772840114583,0.49946512,84.896,84.87,0.68251806]
[1772840116995,0.49946512,84.894,84.871,0.48251806]
[1772840117196,11.77925672,84.895,84.872,0.48251806]
[1772840117394,11.77773066,84.906,84.874,0.33661797]
[1772840117590,0.49946512,84.928,84.874,0.33661797]
[1772840117803,0.14216157,84.926,84.874,0.33661797]
[1772840118122,0.49946512,84.919,84.874,0.33661797]
[1772840118288,0.49946512,84.899,84.87,0.2]
[1772840118493,0.49946512,84.899,84.87,0.53661797]
[1772840118687,0.49946512,84.899,84.871,0.33661797]
[1772840118688,0.49946512,84.898,84.871,0.33661797]
[1772840118914,0.49946512,84.898,84.87,0.2]
[1772840120315,0.49946512,84.889,84.87,0.2]
[1772840123697,11.78022806,84.888,84.87,0.2]
[1772840123925,0.49946512,84.887,84.87,0.2]
[1772840126519,11.78050561,84.886,84.87,0.2]
[1772840126718,0.49946512,84.885,84.87,0.2]
[1772840129930,0.49946512,84.883,84.863,0.33661797]
[1772840132029,0.45729477,84.881,84.863,0.33661797]
[1772840136921,0.45729477,84.879,84.86,11.98405127]
[1772840137121,0.45729477,84.879,84.861,0.33661797]
[1772840145838,0.5,84.869,84.85,0.2]
[1772840146632,0.5,84.868,84.83,0.2]
[1772840146833,0.5,84.868,84.831,11.78803831]
[1772840147820,0.5,84.866,84.831,11.78803831]
[1772840149133,0.5,84.864,84.83,0.2]
[1772840149328,0.5,84.86,84.83,0.2]
[1772840151540,0.28432314,84.858,84.83,0.2]
[1772840151747,0.5,84.857,84.83,0.2]
[1772840153630,11.7846705,84.856,84.831,11.78814348]
[1772840154844,12.2846705,84.856,84.831,11.78814348]
[1772840155753,12.2846705,84.856,84.83,0.2]
[1772840155948,0.5,84.855,84.83,0.2]
[1772840159450,0.5,84.853,84.83,0.2]
[1772840159640,11.92710983,84.854,84.83,0.2]
[1772840159641,0.5,84.852,84.83,0.2]
[1772840160349,0.5,84.853,84.83,0.2]
[1772840160533,11.78522604,84.852,84.83,0.2]
[1772840160734,0.5,84.852,84.831,11.78814348]
[1772840161656,12.28522604,84.852,84.831,11.78814348]
[1772840162751,11.78522604,84.852,84.831,11.78814348]
[1772840162943,0.5,84.851,84.831,11.78814348]
[1772840164258,0.5,84.851,84.83,0.2]
[1772840165864,0.5,84.851,84.83,11.98821399]
[1772840182454,0.5,84.85,84.83,11.98821399]
[1772840183652,0.5,84.848,84.83,0.2]
[1772840186469,11.78592053,84.847,84.83,0.2]
[1772840186666,0.5,84.846,84.83,0.2]
[1772840190670,29.46119667,84.858,84.79,0.2]
[1772840190671,0.48347921,84.839,84.79,0.2]
[1772840190981,19.0405867,84.845,84.777,0.4]
[1772840190982,0.48347921,84.809,84.777,0.4]
[1772840191166,0.48347921,84.809,84.776,11.79577183]
[1772840191576,0.48347921,84.809,84.779,11.79526445]
[1772840191894,0.48347921,84.809,84.781,11.79509559]
[1772840193596,0.48043035,84.807,84.781,11.79509559]
[1772840194265,11.79134043,84.808,84.772,0.45962099]
[1772840194266,0.48043035,84.799,84.772,0.45962099]
[1772840194468,0.48043035,84.799,84.772,11.79629897]
[1772840195812,0.48043035,84.797,84.77,0.2]
[1772840195964,0.48043035,84.789,84.77,0.2]
[1772840196160,0.28432314,84.809,84.771,0.47706881]
[1772840196561,4.3648484,84.8,84.771,0.47706881]
[1772840197886,11.79259189,84.799,84.772,11.79634785]
[1772840198063,0.48043035,84.798,84.772,11.79634785]
[1772840199073,0.48043035,84.798,84.771,0.47706881]
[1772840199886,0.48043035,84.788,84.751,0.47706881]
[1772840200790,11.79426091,84.787,84.751,0.47706881]
[1772840200966,0.48043035,84.786,84.752,11.79913158]
[1772840201291,0.48043035,84.806,84.753,0.47706881]
[1772840201682,4.3648484,84.8,84.753,0.47706881]
[1772840201896,0.48043035,84.799,84.753,0.47706881]
[1772840204279,0.48043035,84.799,84.754,41.29598602]
[1772840204485,0.48043035,84.799,84.755,0.47706881]
[1772840204898,11.79273096,84.798,84.755,0.47706881]
[1772840205100,0.48043035,84.797,84.755,0.47706881]
[1772840206109,0.48043035,84.797,84.757,0.47706881]
[1772840208407,0.48043035,84.795,84.759,0.47706881]
[1772840210413,0.48043035,84.795,84.761,0.47706881]
[1772840210631,7.25438834,84.806,84.761,0.47706881]
[1772840210632,0.48043035,84.793,84.761,0.47706881]
[1772840211706,0.48043035,84.803,84.763,0.47706881]
[1772840214789,0.48043035,84.801,84.765,0.47706881]
[1772840218034,0.47039056,84.799,84.767,0.45066338]
[1772840220433,0.47039056,84.797,84.769,0.45066338]
[1772840221527,11.79211539,84.803,84.765,0.45066338]
[1772840221738,11.7906453,84.813,84.765,0.45066338]
[1772840221930,0.49569148,84.812,84.765,0.45066338]
[1772840222431,0.49569148,84.819,84.77,0.47886205]
[1772840222726,0.49569148,84.824,84.772,0.47886205]
[1772840222928,0.49569148,84.824,84.778,0.47886205]
[1772840223112,0.49569148,84.828,84.778,0.47886205]
[1772840223814,0.49569148,84.828,84.78,0.47886205]
[1772840224330,11.78846004,84.829,84.78,0.47886205]
[1772840224537,0.49569148,84.825,84.78,0.47886205]
[1772840226432,50.61314035,84.826,84.782,0.47886205]
[1772840226433,0.49569148,84.823,84.782,0.47886205]
[1772840226628,0.49569148,84.809,84.782,0.47886205]
[1772840227937,0.49569148,84.807,84.783,11.79481735]
[1772840229329,0.49569148,84.807,84.784,0.47886205]
[1772840230038,0.49569148,84.807,84.779,0.47886205]
[1772840230339,0.49569148,84.805,84.779,0.47886205]
[1772840230726,0.49569148,84.805,84.774,0.47886205]
[1772840236641,0.49569148,84.803,84.763,0.47886205]
[1772840237850,0.49569148,84.801,84.765,0.47886205]
[1772840241734,0.49569148,84.799,84.767,0.47886205]
[1772840243846,0.49569148,84.797,84.769,0.47886205]
[1772840246445,0.49569148,84.797,84.77,11.79662616]
[1772840246648,0.49569148,84.797,84.771,0.47886205]
[1772840250667,0.49569148,84.795,84.773,0.47886205]
[1772840252659,41.27553186,84.796,84.773,0.47886205]
[1772840252660,0.48205489,84.793,84.773,0.47886205]
[1772840255368,0.48205489,84.793,84.775,0.4961499]
[1772840257857,0.48205489,84.797,84.776,11.79579126]
[1772840258176,0.48205489,84.797,84.777,0.4961499]
[1772840260145,0.48205489,84.796,84.777,0.4961499]
[1772840262064,0.48205489,84.8,84.779,0.4961499]
[1772840263167,0.48205489,84.798,84.779,0.4961499]
[1772840266070,11.79287003,84.797,84.779,0.4961499]
[1772840266274,12.27492492,84.797,84.779,0.4961499]
[1772840268385,0.48205489,84.8,84.779,0.4961499]
[1772840270374,0.48205489,84.798,84.779,0.4961499]
[1772840275281,0.48205489,84.796,84.779,0.4961499]
[1772840277791,12.25259359,84.795,84.779,0.4961499]
[1772840279172,0.45944541,84.795,84.78,0.45465522]
[1772840279691,0.45944541,84.805,84.78,0.45465522]
[1772840279893,37.50833844,84.807,84.78,0.45465522]
[1772840280393,49.29986425,84.807,84.78,0.45465522]
[1772840280591,49.75930966,84.807,84.78,0.45465522]
[1772840280802,37.50833844,84.807,84.781,11.79509559]
[1772840281094,37.50833844,84.807,84.782,0.45465522]
[1772840283392,37.50833844,84.807,84.784,0.48728253]
[1772840283694,0.485019,84.806,84.784,0.48728253]
[1772840284790,0.485019,84.806,84.785,11.79453912]
[1772840285100,0.485019,84.806,84.786,0.48728253]
[1772840287095,0.485019,84.806,84.788,0.48728253]
[1772840287297,37.50833844,84.807,84.788,0.48728253]
[1772840287604,37.99335744,84.807,84.788,0.48728253]
[1772840288095,0.485019,84.806,84.788,0.48728253]
[1772840289889,0.485019,84.806,84.789,11.79398271]
[1772840290094,0.485019,84.806,84.79,0.48728253]
[1772840292694,37.50833844,84.807,84.792,0.48728253]
[1772840298207,37.50833844,84.807,84.793,11.79342634]
[1772840298403,37.50833844,84.807,84.794,0.48728253]
[1772840310316,37.50833844,84.807,84.796,0.48728253]
[1772840322709,37.50833844,84.807,84.794,0.48910415]
[1772840322710,37.96353435,84.807,84.794,0.48910415]
[1772840323626,37.50833844,84.807,84.794,0.48910415]
[1772840325930,0.45519591,84.806,84.79,0.48910415]
[1772840329432,0.45519591,84.804,84.771,0.48910415]
[1772840330326,0.45519591,84.804,84.772,0.48910415]
[1772840331526,0.45519591,84.802,84.774,0.48910415]
[1772840334838,0.45519591,84.802,84.775,11.7959304]
[1772840335139,0.45519591,84.802,84.776,0.48910415]
[1772840336042,11.79231376,84.801,84.776,0.48910415]
[1772840336338,0.45519591,84.802,84.776,0.48910415]
[1772840338044,0.49236913,84.801,84.778,0.46093808]
[1772840341138,0.49236913,84.801,84.779,11.79537385]
[1772840341342,0.49236913,84.801,84.779,11.0758042]
[1772840342046,0.49236913,84.801,84.78,0.5]
[1772840343226,0.49236913,84.801,84.781,11.79509559]
[1772840343426,37.50833844,84.807,84.782,0.5]
[1772840345440,37.50833844,84.807,84.784,0.5]
[1772840346845,37.50833844,84.807,84.785,11.79453912]
[1772840347043,37.50833844,84.807,84.786,0.5]
[1772840349955,37.50833844,84.807,84.788,0.5]
[1772840353164,37.50833844,84.807,84.79,0.5]
[1772840357267,37.50833844,84.807,84.791,11.79370452]
[1772840358059,37.50833844,84.807,84.792,0.5]
[1772840363479,37.50833844,84.807,84.794,0.5]
[1772840364987,37.50833844,84.807,84.796,0.5]
[1772840365872,37.50833844,84.807,84.795,12.29314818]
[1772840366071,37.50833844,84.807,84.796,0.5]
[1772840372996,37.50833844,84.807,84.797,11.79287003]
[1772840373189,37.50833844,84.807,84.798,0.5]
[1772840374688,28.10246119,84.837,84.798,0.5]
[1772840375287,11.78744872,84.836,84.8,0.5]
[1772840378691,11.78744872,84.836,84.801,11.79231376]
[1772840378895,11.78744872,84.836,84.802,0.5]
[1772840379897,11.78744872,84.836,84.804,0.5]
[1772840382198,11.78744872,84.836,84.806,0.5]
[1772840386002,11.78744872,84.836,84.808,0.5]
[1772840387499,11.78744872,84.836,84.81,0.5]
[1772840391701,41.25607053,84.836,84.81,0.5]
[1772840398013,41.67817897,84.845,84.81,0.5]
[1772840400916,48.93256731,84.845,84.81,0.5]
[1772840402911,0.28432314,84.839,84.81,0.5]
[1772840403816,41.25509794,84.838,84.806,0.5]
[1772840404497,41.25509794,84.838,84.797,0.5]
[1772840404819,4.36808621,84.83,84.797,0.5]
[1772840405019,11.78842141,84.829,84.797,0.5]
[1772840406020,11.78842141,84.829,84.799,0.5]
[1772840407015,11.78842141,84.829,84.779,0.5]
[1772840407016,4.36808621,84.82,84.779,0.5]
[1772840407220,41.26433935,84.819,84.781,0.5]
[1772840413236,4.36808621,84.83,84.776,0.5]
[1772840413237,58.94363602,84.827,84.776,0.5]
[1772840413419,4.36808621,84.81,84.776,0.5]
[1772840413732,0.28432314,84.819,84.776,0.5]
[1772840416035,41.26482585,84.818,84.778,0.5]
[1772840418925,0.28432314,84.809,84.769,0.5]
[1772840425033,0.28432314,84.809,84.755,3.69383402]
[1772840425034,11.79134043,84.808,84.771,0.5]
[1772840427937,0.28432314,84.809,84.773,0.5]
[1772840430855,0.28432314,84.799,84.752,0.5]
[1772840434244,41.27455836,84.798,84.754,0.5]
[1772840435548,0.42648471,84.809,84.756,0.5]
[1772840435549,0.14216157,84.807,84.756,0.5]
[1772840436943,0.42648471,84.805,84.756,0.5]
[1772840439953,0.42648471,84.803,84.758,0.5]
[1772840442051,0.42648471,84.803,84.757,11.79843552]
[1772840442052,0.28432314,84.799,84.745,0.5]
[1772840444357,41.27455836,84.798,84.747,0.5]
[1772840447162,41.27455836,84.798,84.749,0.5]
[1772840448455,41.27455836,84.798,84.751,0.5]
[1772840452064,41.27455836,84.798,84.753,0.5]
[1772840455066,41.27455836,84.798,84.755,0.5]
[1772840456463,41.27455836,84.798,84.757,0.5]
[1772840457775,41.27455836,84.798,84.759,0.5]
[1772840458868,11.79273096,84.798,84.759,0.5]
[1772840463957,29.47855237,84.808,84.761,0.5]
[1772840465971,4.36992512,84.8,84.763,0.5]
[1772840469865,11.79259189,84.799,84.765,0.5]
[1772840472170,11.79259189,84.799,84.764,11.79746118]
[1772840472171,29.47855237,84.808,84.767,0.5]
[1772840478983,29.47855237,84.808,84.768,11.79690449]
[1772840479188,29.47855237,84.808,84.769,0.5]
[1772840480183,29.47855237,84.808,84.77,11.79662616]
[1772840480489,29.47855237,84.808,84.771,0.5]
[1772840485300,29.47855237,84.808,84.766,0.5]
[1772840485478,0.28432314,84.799,84.751,0.5]
[1772840487197,41.27455836,84.798,84.756,0.5]
[1772840491098,41.27455836,84.798,84.758,0.5]
[1772840492883,11.79273096,84.798,84.758,0.5]
[1772840493291,0.14216157,84.815,84.76,0.5]
[1772840493497,0.28432314,84.815,84.76,0.5]
[1772840493688,0.42648471,84.815,84.76,0.5]
[1772840495398,0.42648471,84.813,84.762,0.5]
[1772840500012,0.42648471,84.811,84.764,0.5]
[1772840502907,41.2687183,84.81,84.765,11.797322]
[1772840503211,0.28432314,84.809,84.766,0.5]
[1772840506099,41.26969152,84.808,84.768,0.5]
[1772840509095,41.26969152,84.808,84.77,0.5]
[1772840512113,41.26969152,84.808,84.772,0.5]
[1772840515020,41.26969152,84.808,84.774,0.5]
[1772840518325,29.47835109,84.808,84.774,0.5]
[1772840528531,29.47835109,84.808,84.776,0.5]
[1772840540151,0.45388595,84.807,84.745,0.28432314]
[1772840540449,0.45388595,84.807,84.745,0.42648471]
[1772840541847,0.45388595,84.805,84.748,0.14216157]
[1772840542347,0.45388595,84.805,84.749,0.49224996]
[1772840543538,0.45388595,84.803,84.754,0.49224996]
[1772840544857,4.3692366,84.81,84.759,0.49224996]
[1772840544858,0.45388595,84.801,84.759,0.49224996]
[1772840548857,0.45388595,84.799,84.76,0.49224996]
[1772840549057,0.45388595,84.799,84.737,0.49224996]
[1772840549058,0.45388595,84.778,84.737,0.49224996]
[1772840550651,41.28478242,84.777,84.737,0.49224996]
[1772840550970,0.45388595,84.776,84.737,0.49224996]
[1772840552241,0.28432314,84.779,84.735,11.80139592]
[1772840552242,0.4822074,84.774,84.74,0.67139774]
[1772840553740,0.4822074,84.769,84.741,0.47139774]
[1772840553942,0.4822074,84.768,84.728,0.47139774]
[1772840554252,0.4822074,84.757,84.728,0.47139774]
[1772840556059,0.4822074,84.755,84.728,0.47139774]
[1772840558271,0.4822074,84.749,84.723,0.47139774]
[1772840559739,0.4822074,84.758,84.723,0.47139774]
[1772840560762,11.2027948,84.759,84.725,0.47139774]
[1772840561345,11.79829632,84.758,84.725,0.47139774]
[1772840561545,12.28050372,84.758,84.725,0.47139774]
[1772840562668,0.4822074,84.757,84.727,0.47139774]
[1772840564569,0.4822074,84.755,84.729,0.47139774]
[1772840565168,0.4822074,84.755,84.726,0.47139774]
[1772840565978,0.4822074,84.755,84.723,0.47139774]
[1772840569074,0.4822074,84.753,84.725,0.47139774]
[1772840571260,0.4822074,84.749,84.714,0.47139774]
[1772840571871,0.4822074,84.749,84.722,0.47139774]
[1772840572374,0.4822074,84.747,84.722,0.47139774]
[1772840574072,0.4822074,84.747,84.713,11.8044848]
[1772840574263,0.4822074,84.747,84.713,12.27588254]
[1772840574680,0.4822074,84.745,84.717,0.47139774]
[1772840575179,0.4822074,84.745,84.719,0.47139774]
[1772840575477,0.4822074,84.745,84.721,1.19419374]
[1772840576375,11.80024544,84.744,84.722,0.46575203]
[1772840576679,0.49985859,84.743,84.722,0.46575203]
[1772840577474,11.79954925,84.749,84.722,0.46575203]
[1772840578757,11.79871394,84.755,84.724,0.46575203]
[1772840579072,0.49985859,84.754,84.724,0.46575203]
[1772840580368,0.49985859,84.739,84.69,0.1]
[1772840580568,0.28432314,84.739,84.69,0.1]
[1772840580770,0.49985859,84.738,84.69,0.1]
[1772840580963,0.49985859,84.736,84.69,0.1]
[1772840582560,0.49985859,84.736,84.691,0.49303062]
[1772840583569,0.46905648,84.734,84.693,0.49303062]
[1772840586578,0.46905648,84.728,84.691,0.49303062]
[1772840588183,0.46905648,84.719,84.69,0.59303062]
[1772840588566,0.46905648,84.717,84.691,0.49303062]
[1772840588766,11.80386694,84.718,84.691,0.49303062]
[1772840589075,12.27292342,84.718,84.691,0.49303062]
[1772840589273,0.46905648,84.717,84.691,0.49303062]
[1772840591269,11.80414561,84.716,84.691,0.49303062]
[1772840591586,0.46905648,84.708,84.671,8.44343135]
[1772840591784,0.46905648,84.708,84.624,4.82477569]
[1772840591785,6.158,84.684,84.598,1.18206104]
[1772840591988,0.2,84.703,84.602,1.18200515]
[1772840592178,47.47415356,84.707,84.614,4.82477569]
[1772840592381,0.46905648,84.699,84.618,8.51860971]
[1772840592586,0.46905648,84.699,84.56,26.43808465]
[1772840592587,0.46905648,84.693,84.619,1.18176768]
[1772840592771,4.37491339,84.69,84.601,4.96693726]
[1772840593083,4.37491339,84.69,84.611,0.14216157]
[1772840593287,4.37491339,84.69,84.602,7.34144704]
[1772840593288,0.46905648,84.687,84.624,3.69383402]
[1772840593583,0.46905648,84.687,84.625,0.42648471]
[1772840593768,0.46905648,84.687,84.636,0.49303062]
[1772840593972,0.46905648,84.687,84.638,0.49303062]
[1772840595473,0.46905648,84.685,84.64,0.49303062]
[1772840597597,11.80860611,84.684,84.642,0.49303062]
[1772840598394,0.46905648,84.683,84.642,0.49303062]
[1772840601003,0.46905648,84.696,84.644,0.49303062]
[1772840601187,0.46905648,84.697,84.648,0.49303062]
[1772840601388,0.46905648,84.695,84.648,0.49303062]
[1772840602798,11.80721184,84.694,84.649,11.81348864]
[1772840603101,0.46905648,84.693,84.65,0.49303062]
[1772840607182,4.84396987,84.69,84.652,0.49303062]
[1772840607386,0.46905648,84.689,84.652,0.49303062]
[1772840613985,11.80804836,84.688,84.652,0.49303062]
[1772840614190,0.48107221,84.687,84.654,0.49148109]
[1772840616398,0.48107221,84.685,84.656,0.49148109]
[1772840617698,11.80710134,84.695,84.659,0.49148109]
[1772840618095,0.48107221,84.694,84.659,0.49148109]
[1772840618501,0.48107221,84.694,84.658,3.69383402]
[1772840618502,72.23330325,84.697,84.661,0.49148109]
[1772840619219,84.04009762,84.697,84.661,0.49148109]
[1772840621208,84.52116983,84.697,84.663,0.49148109]
[1772840621921,0.48107221,84.696,84.663,0.49148109]
[1772840623425,0.48107221,84.694,84.665,0.49148109]
[1772840626731,0.48107221,84.694,84.667,0.49148109]
[1772840628132,72.23330325,84.697,84.667,0.49148109]
[1772840628431,0.48107221,84.696,84.667,0.49148109]
[1772840628830,0.48107221,84.696,84.669,0.49148109]
[1772840630045,72.23330325,84.697,84.669,0.49148109]
[1772840630046,0.48107221,84.694,84.669,0.49148109]
[1772840631121,0.48107221,84.694,84.671,0.49148109]
[1772840632134,72.23330325,84.697,84.671,0.49148109]
[1772840633138,72.23330325,84.697,84.673,0.49148109]
[1772840635833,72.23330325,84.697,84.674,11.8100007]
[1772840636041,72.71437546,84.697,84.675,0.49148109]
[1772840636925,11.80693303,84.696,84.675,0.49148109]
[1772840637124,11.80693303,84.696,84.676,11.80972176]
[1772840637335,72.23330325,84.697,84.678,0.46704616]
[1772840638743,72.7203942,84.697,84.68,0.46704616]
[1772840639840,72.23330325,84.697,84.682,0.46704616]
[1772840640435,9.07555203,84.697,84.684,0.46704616]
[1772840640641,1e-08,84.697,84.682,0.46669407]
[1772840641942,1e-08,84.697,84.684,0.46669407]
[1772840643033,1e-08,84.697,84.686,0.46669407]
[1772840644637,1e-08,84.697,84.687,11.80818779]
[1772840644837,1e-08,84.697,84.688,0.46669407]
[1772840646958,1e-08,84.697,84.69,0.46669407]
[1772840648257,0.48858169,84.717,84.69,0.46669407]
[1772840649257,0.48858169,84.717,84.692,0.46669407]
[1772840653155,0.48858169,84.717,84.694,0.46669407]
[1772840656163,0.48858169,84.717,84.695,11.80707243]
[1772840658363,0.48858169,84.715,84.691,11.80763009]
[1772840659856,0.48858169,84.715,84.671,27.79963363]
[1772840659857,0.48858169,84.715,84.692,0.46669407]
[1772840662073,0.48858169,84.715,84.693,11.80735125]
[1772840663163,0.48858169,84.715,84.685,11.80846667]
[1772840664074,0.48858169,84.715,84.686,0.46669407]
[1772840665075,0.48858169,84.715,84.687,11.80818779]
[1772840665276,0.48858169,84.715,84.688,0.46669407]
[1772840675971,0.48858169,84.715,84.689,11.80790893]
[1772840676396,0.48858169,84.715,84.69,0.46669407]
[1772840678472,0.48858169,84.715,84.691,11.80763009]
[1772840678872,0.48858169,84.715,84.692,0.46669407]
[1772840680973,0.48858169,84.715,84.694,0.46669407]
[1772840683176,0.49012859,84.719,84.696,0.46669407]
[1772840683892,0.49012859,84.732,84.696,0.46669407]
[1772840686297,0.49012859,84.73,84.698,0.46669407]
[1772840689381,0.49012859,84.728,84.7,0.46669407]
[1772840691094,0.49012859,84.728,84.702,0.46669407]
[1772840692699,0.49012859,84.726,84.702,0.46669407]
[1772840693491,0.49012859,84.724,84.702,0.46669407]
[1772840693879,0.49012859,84.724,84.688,0.46669407]
[1772840695305,0.49012859,84.722,84.69,0.46669407]
[1772840696798,11.80014056,84.745,84.695,0.48513586]
[1772840697208,11.80014056,84.745,84.699,0.48513586]
[1772840697498,11.80014056,84.745,84.701,0.48513586]
[1772840698704,11.80014056,84.745,84.703,0.48513586]
[1772840699006,0.45587148,84.744,84.703,0.48513586]
[1772840700890,0.45587148,84.742,84.705,0.48513586]
[1772840701289,0.45587148,84.742,84.692,29.51869054]
[1772840701290,0.45587148,84.729,84.684,0.48513586]
[1772840701995,0.46530863,84.719,84.684,0.48513586]
[1772840703008,0.46530863,84.717,84.686,0.46628204]
[1772840705614,0.46530863,84.715,84.688,0.46628204]
[1772840715118,0.46530863,84.713,84.69,0.46628204]
[1772840716928,0.46530863,84.748,84.692,0.46628204]
[1772840717222,0.46530863,84.748,84.698,0.46628204]
[1772840717921,0.46530863,84.746,84.7,0.46628204]
[1772840719325,0.46530863,84.744,84.702,0.46628204]
[1772840722227,0.46530863,84.742,84.704,0.46628204]
[1772840724517,29.5002655,84.745,84.692,0.28432314]
[1772840724518,0.46530863,84.74,84.706,0.46628204]
[1772840726914,11.80066319,84.741,84.699,29.51598448]
[1772840726915,0.46530863,84.738,84.708,0.46628204]
[1772840734321,0.48682218,84.736,84.71,0.47853293]
[1772840736724,0.48682218,84.736,84.711,11.80484234]
[1772840736929,0.48682218,84.736,84.712,0.47853293]
[1772840738647,0.48682218,84.736,84.714,0.47853293]
[1772840741415,0.48682218,84.748,84.718,0.47853293]
[1772840742545,0.48682218,84.748,84.72,0.47853293]
[1772840743126,0.48682218,84.757,84.722,0.47853293]
[1772840743332,0.48682218,84.757,84.728,0.47853293]
[1772840743629,0.48682218,84.757,84.72,0.42648471]
[1772840743630,0.48682218,84.749,84.72,0.47853293]
[1772840744651,11.79968848,84.748,84.72,0.47853293]
[1772840744850,0.48682218,84.747,84.718,11.80381513]
[1772840745244,0.48682218,84.739,84.706,0.47853293]
[1772840746123,0.48682218,84.739,84.706,12.28407208]
[1772840747050,0.48682218,84.737,84.706,12.28407208]
[1772840747245,0.48682218,84.729,84.705,9.00397322]
[1772840748533,0.48682218,84.727,84.705,9.00397322]
[1772840749735,0.48682218,84.725,84.705,9.00397322]
[1772840750745,0.48682218,84.723,84.705,9.00397322]
[1772840753349,0.48682218,84.721,84.705,9.00397322]
[1772840754854,0.48682218,84.719,84.705,9.00397322]
[1772840759366,0.48979787,84.717,84.705,9.00397322]
[1772840759649,0.48979787,84.717,84.693,0.46525056]
[1772840761758,0.48979787,84.715,84.694,12.2724624]
[1772840762756,0.48979787,84.715,84.695,0.48239694]
[1772840762965,0.49178512,84.713,84.695,0.48239694]
[1772840764646,0.49178512,84.711,84.691,0.48239694]
[1772840766344,11.8049817,84.71,84.691,0.48239694]
[1772840766554,0.49178512,84.709,84.691,0.48239694]
[1772840777752,0.49178512,84.709,84.683,29.52153017]
[1772840777956,0.49178512,84.707,84.675,11.80975003]
[1772840778658,0.49178512,84.707,84.675,12.29214697]
[1772840779058,0.49178512,84.707,84.678,11.80939127]
[1772840779260,0.49178512,84.707,84.678,12.29178821]
[1772840779652,0.49178512,84.707,84.679,8.85254014]
[1772840782277,0.49178512,84.705,84.681,0.48239694]
[1772840784466,11.8058179,84.704,84.681,0.48239694]
[1772840784676,0.49178512,84.703,84.681,0.48239694]
[1772840784858,0.49178512,84.703,84.679,8.3701432]
[1772840785057,0.49178512,84.703,84.68,0.48239694]
[1772840786076,11.80609666,84.702,84.68,0.48239694]
[1772840786282,0.49178512,84.701,84.68,0.48239694]
[1772840787387,0.49178512,84.715,84.682,0.48239694]
[1772840790284,11.80442429,84.714,84.684,0.48239694]
[1772840791583,11.80442429,84.714,84.686,0.48239694]
[1772840791875,0.47341931,84.726,84.688,0.48239694]
[1772840794467,0.47341931,84.724,84.69,0.48559165]
[1772840797589,0.47341931,84.722,84.692,0.48559165]
[1772840800475,0.47341931,84.72,84.694,0.48559165]
[1772840806101,12.27714692,84.719,84.696,0.48559165]
[1772840806706,0.47341931,84.718,84.696,0.48559165]
[1772840807713,0.47341931,84.718,84.695,11.80707243]
[1772840807901,0.47341931,84.716,84.694,0.48559165]
[1772840812214,0.47341931,84.716,84.696,0.48559165]
[1772840813092,4.37724539,84.74,84.696,0.48559165]
[1772840813093,0.47341931,84.72,84.696,0.48559165]
[1772840816410,0.47341931,84.729,84.698,0.48559165]
[1772840816711,0.47341931,84.736,84.698,0.48559165]
[1772840821622,0.48713378,84.734,84.7,0.45527603]
[1772840822632,0.46290875,84.738,84.702,0.46726655]
[1772840822795,0.46290875,84.738,84.708,0.46726655]
[1772840827803,0.46290875,84.742,84.71,0.46726655]
[1772840830421,0.46290875,84.74,84.712,0.46726655]
[1772840831422,11.80094171,84.739,84.713,11.80456364]
[1772840831607,11.80094171,84.739,84.714,0.46726655]
[1772840831608,0.46290875,84.738,84.714,0.46726655]
[1772840834127,0.46290875,84.736,84.714,0.46726655]
[1772840835026,0.46290875,84.736,84.716,0.46726655]
[1772840838318,0.46290875,84.734,84.716,0.46726655]
[1772840838509,0.46290875,84.732,84.702,27.79963363]
[1772840839325,0.46290875,84.729,84.702,27.79963363]
[1772840839524,0.46290875,84.729,84.691,12.27485693]
[1772840840226,0.46290875,84.729,84.691,11.80759038]
[1772840842335,0.46290875,84.727,84.691,11.80759038]
[1772840843138,0.46290875,84.727,84.691,12.27485693]
[1772840843314,0.46290875,84.725,84.693,11.80735125]
[1772840843730,0.46290875,84.725,84.694,0.46726655]
[1772840845420,0.46290875,84.723,84.694,0.46726655]
[1772840849349,0.46290875,84.721,84.694,0.46726655]
[1772840857345,0.48486497,84.719,84.696,0.48266704]
[1772840862451,11.80386694,84.718,84.696,0.48266704]
[1772840863775,0.48486497,84.717,84.696,0.48266704]
[1772840865069,11.80414561,84.716,84.697,11.80679362]
[1772840865269,11.80414561,84.716,84.698,0.48266704]
[1772840865656,11.80369189,84.72,84.698,0.48266704]
[1772840870387,11.80358829,84.72,84.702,0.48266704]
[1772840871374,0.48486497,84.72,84.702,0.48266704]
[1772840875385,11.80372761,84.719,84.702,0.48266704]
[1772840875583,12.28859258,84.719,84.702,0.48266704]
[1772840875886,0.48486497,84.718,84.702,0.48266704]